fUST/lending_fUST_20250216
["ID","MTS","AMOUNT","RATE_DAILY","PERIOD"]
[353239344,1739703046763,-500.0,8.764e-05,2]
[353239345,1739703046772,-711.55,8.764e-05,2]
[353239346,1739703046782,-1171.89,8.764e-05,2]
[353239347,1739703046792,-704.11,8.764e-05,2]
[353239348,1739703046801,-500.0,8.764e-05,2]
[353239349,1739703046811,-500.0,8.764e-05,2]
[353239350,1739703046821,-668.42,8.764e-05,2]
[353239351,1739703046830,-500.0,8.764e-05,2]
[353239352,1739703046840,-1262.42,8.764e-05,2]
[353239353,1739703046850,-500.0,8.764e-05,2]
[353239354,1739703046859,-500.0,8.764e-05,2]
[353239355,1739703046869,-500.0,8.764e-05,2]
[353239356,1739703046878,-3125.13,8.764e-05,2]
[353239357,1739703046888,-500.0,8.764e-05,2]
[353239358,1739703046897,-2530.26860333,8.764e-05,2]
[353239359,1739703046910,-11818.13139667,8.764e-05,2]
[353239360,1739703046920,-500.0,8.764e-05,2]
[353239361,1739703046930,-500.0,8.764e-05,2]
[353239362,1739703046942,-647.7,8.764e-05,2]
[353239363,1739703046951,-500.0,8.764e-05,2]
[353239364,1739703046961,-787.41,8.764e-05,2]
[353239365,1739703046970,-700.18,8.764e-05,2]
[353239366,1739703046980,-26139.30034937,8.764e-05,2]
[353239373,1739703451655,500.0,0.00018904,120]
[353239400,1739704235420,-1100.0,8.22e-05,2]
[353239401,1739704235430,-601.00226908,8.544e-05,2]
[353239402,1739704235440,-300.0,8.759e-05,2]
[353239403,1739704235450,-500.0,8.759e-05,2]
[353239404,1739704235460,-500.0,8.76e-05,2]
[353239405,1739704235469,-336.92353229,8.76e-05,2]
[353239406,1739704235479,-500.0,8.76e-05,2]
[353239407,1739704235489,-500.0,8.76e-05,2]
[353239408,1739704235498,-647.73739751,8.76e-05,2]
[353239409,1739704235507,-500.0,8.76e-05,2]
[353239410,1739704235516,-500.0,8.76e-05,2]
[353239411,1739704235525,-500.0,8.76e-05,2]
[353239412,1739704235535,-500.0,8.76e-05,2]
[353239413,1739704235544,-500.0,8.76e-05,2]
[353239414,1739704235554,-500.0,8.76e-05,2]
[353239415,1739704235635,-232.87232742,8.76e-05,2]
[353239416,1739704235662,-500.0,8.76e-05,2]
[353239417,1739704235671,-1254.94,8.76e-05,2]
[353239418,1739704235681,-500.0,8.76e-05,2]
[353239419,1739704235691,-1430.10917161,8.76e-05,2]
[353239420,1739704235717,-2107.94082839,8.76e-05,2]
[353239421,1739704235727,-156.2549033,8.76e-05,2]
[353239422,1739704235737,-500.0,8.76e-05,2]
[353239423,1739704235747,-500.0,8.76e-05,2]
[353239424,1739704235757,-500.0,8.76e-05,2]
[353239425,1739704235770,-500.0,8.76e-05,2]
[353239426,1739704235779,-500.0,8.76e-05,2]
[353239427,1739704235789,-500.0,8.76e-05,2]
[353239428,1739704235799,-500.0,8.76e-05,2]
[353239429,1739704235815,-2982.34,8.76e-05,2]
[353239430,1739704235832,-7046.29,8.76e-05,2]
[353239431,1739704235841,-1574.08,8.76e-05,2]
[353239432,1739704235851,-500.0,8.76e-05,2]
[353239433,1739704235861,-1245.65,8.76e-05,2]
[353239434,1739704235871,-2556.71,8.76e-05,2]
[353239435,1739704235880,-500.0,8.76e-05,2]
[353239436,1739704235890,-500.0,8.76e-05,2]
[353239437,1739704235900,-3140.13,8.76e-05,2]
[353239438,1739704235909,-500.0,8.76e-05,2]
[353239439,1739704235919,-500.0,8.76e-05,2]
[353239440,1739704235928,-500.0,8.76e-05,2]
[353239441,1739704235938,-500.0,8.76e-05,2]
[353239442,1739704235947,-681.42,8.76e-05,2]
[353239443,1739704235957,-500.0,8.76e-05,2]
[353239444,1739704235966,-819.65,8.76e-05,2]
[353239445,1739704235978,-500.0,8.76e-05,2]
[353239446,1739704235989,-2539.33,8.76e-05,2]
[353239447,1739704235999,-500.0,8.76e-05,2]
[353239448,1739704236009,-6238.48,8.76e-05,2]
[353239449,1739704236019,-500.0,8.76e-05,2]
[353239450,1739704236028,-965.67,8.76e-05,2]
[353239451,1739704236038,-500.0,8.76e-05,2]
[353239452,1739704236047,-500.0,8.761e-05,2]
[353239453,1739704236057,-500.0,8.761e-05,2]
[353239454,1739704236066,-500.0,8.761e-05,2]
[353239455,1739704236076,-500.0,8.761e-05,2]
[353239456,1739704236086,-500.0,8.761e-05,2]
[353239457,1739704236095,-500.0,8.761e-05,2]
[353239458,1739704236105,-500.0,8.761e-05,2]
[353239459,1739704236114,-500.0,8.761e-05,2]
[353239460,1739704236124,-500.0,8.761e-05,2]
[353239461,1739704236134,-500.0,8.761e-05,2]
[353239462,1739704236143,-500.0,8.761e-05,2]
[353239463,1739704236153,-500.0,8.761e-05,2]
[353239464,1739704236162,-500.0,8.761e-05,2]
[353239465,1739704236172,-500.0,8.761e-05,2]
[353239466,1739704236181,-500.0,8.761e-05,2]
[353239467,1739704236191,-826.71,8.761e-05,2]
[353239468,1739704236200,-500.0,8.761e-05,2]
[353239469,1739704236209,-500.0,8.761e-05,2]
[353239470,1739704236219,-500.0,8.761e-05,2]
[353239471,1739704236229,-500.0,8.761e-05,2]
[353239472,1739704236238,-500.0,8.761e-05,2]
[353239473,1739704236248,-479.0,8.761e-05,2]
[353239474,1739704236257,-500.0,8.761e-05,2]
[353239475,1739704236267,-500.0,8.761e-05,2]
[353239476,1739704236276,-500.0,8.761e-05,2]
[353239477,1739704236285,-500.0,8.761e-05,2]
[353239478,1739704236294,-500.0,8.761e-05,2]
[353239479,1739704236304,-528.05960842,8.761e-05,2]
[353239480,1739704236313,-684.66,8.761e-05,2]
[353239481,1739704236323,-500.0,8.761e-05,2]
[353239482,1739704236333,-500.0,8.761e-05,2]
[353239483,1739704236345,-727.98,8.761e-05,2]
[353239484,1739704236355,-500.0,8.761e-05,2]
[353239485,1739704236366,-500.0,8.761e-05,2]
[353239486,1739704236377,-500.0,8.761e-05,2]
[353239487,1739704236387,-500.0,8.761e-05,2]
[353239488,1739704236398,-505.53283008,8.761e-05,2]
[353239489,1739704236409,-500.0,8.761e-05,2]
[353239490,1739704236421,-338.00542148,8.761e-05,2]
[353239491,1739704236432,-500.0,8.761e-05,2]
[353239492,1739704236442,-500.0,8.761e-05,2]
[353239493,1739704236451,-500.0,8.761e-05,2]
[353239494,1739704236460,-500.0,8.761e-05,2]
[353239495,1739704236470,-500.0,8.761e-05,2]
[353239496,1739704236479,-935.71,8.761e-05,2]
[353239497,1739704236489,-500.0,8.761e-05,2]
[353239498,1739704236499,-500.0,8.761e-05,2]
[353239499,1739704236509,-500.0,8.761e-05,2]
[353239500,1739704236519,-500.0,8.761e-05,2]
[353239501,1739704236529,-500.0,8.761e-05,2]
[353239502,1739704236538,-500.0,8.761e-05,2]
[353239503,1739704236548,-500.0,8.761e-05,2]
[353239504,1739704236557,-500.0,8.761e-05,2]
[353239505,1739704236568,-500.0,8.761e-05,2]
[353239506,1739704236578,-500.0,8.761e-05,2]
[353239507,1739704236588,-500.0,8.761e-05,2]
[353239508,1739704236598,-504.56818694,8.761e-05,2]
[353239509,1739704236607,-500.0,8.761e-05,2]
[353239510,1739704236617,-500.0,8.761e-05,2]
[353239511,1739704236628,-500.0,8.761e-05,2]
[353239512,1739704236638,-500.0,8.761e-05,2]
[353239513,1739704236647,-500.0,8.761e-05,2]
[353239514,1739704236657,-500.0,8.761e-05,2]
[353239515,1739704236666,-723.15,8.761e-05,2]
[353239516,1739704236677,-500.0,8.761e-05,2]
[353239517,1739704236690,-250.23317765,8.761e-05,2]
[353239518,1739704236699,-500.0,8.761e-05,2]
[353239519,1739704236709,-500.0,8.761e-05,2]
[353239520,1739704236719,-503.93643847,8.761e-05,2]
[353239521,1739704236728,-502.0872496,8.761e-05,2]
[353239522,1739704236738,-516.6,8.761e-05,2]
[353239523,1739704236748,-500.0,8.761e-05,2]
[353239524,1739704236758,-924.77,8.761e-05,2]
[353239525,1739704236768,-500.0,8.761e-05,2]
[353239526,1739704236778,-500.0,8.761e-05,2]
[353239527,1739704236787,-500.0,8.761e-05,2]
[353239528,1739704236798,-500.0,8.761e-05,2]
[353239529,1739704236808,-500.0,8.761e-05,2]
[353239530,1739704236817,-500.0,8.761e-05,2]
[353239531,1739704236826,-500.0,8.761e-05,2]
[353239532,1739704236836,-500.0,8.761e-05,2]
[353239533,1739704236847,-500.0,8.761e-05,2]
[353239534,1739704236856,-500.0,8.761e-05,2]
[353239535,1739704236866,-500.0,8.761e-05,2]
[353239536,1739704236875,-500.0,8.761e-05,2]
[353239537,1739704236885,-500.0,8.761e-05,2]
[353239538,1739704236895,-500.0,8.761e-05,2]
[353239539,1739704236904,-500.0,8.761e-05,2]
[353239540,1739704236914,-500.0,8.761e-05,2]
[353239541,1739704236924,-237.61177019,8.761e-05,2]
[353239542,1739704236934,-773.59,8.761e-05,2]
[353239543,1739704236943,-500.0,8.761e-05,2]
[353239544,1739704237024,-710.14,8.761e-05,2]
[353239545,1739704237041,-500.0,8.761e-05,2]
[353239546,1739704237051,-500.0,8.761e-05,2]
[353239547,1739704237062,-500.0,8.761e-05,2]
[353239548,1739704237071,-500.0,8.761e-05,2]
[353239549,1739704237080,-500.0,8.761e-05,2]
[353239550,1739704237090,-500.0,8.761e-05,2]
[353239551,1739704237099,-500.0,8.761e-05,2]
[353239552,1739704237109,-500.0,8.761e-05,2]
[353239553,1739704237119,-500.0,8.761e-05,2]
[353239554,1739704237128,-500.0,8.761e-05,2]
[353239555,1739704237138,-500.0,8.761e-05,2]
[353239556,1739704237148,-500.0,8.761e-05,2]
[353239557,1739704237157,-673.14,8.761e-05,2]
[353239558,1739704237167,-500.0,8.761e-05,2]
[353239559,1739704237177,-500.0,8.761e-05,2]
[353239560,1739704237187,-500.0,8.761e-05,2]
[353239561,1739704237196,-500.0,8.761e-05,2]
[353239562,1739704237207,-740.6,8.761e-05,2]
[353239563,1739704237216,-500.0,8.761e-05,2]
[353239564,1739704237226,-500.0,8.761e-05,2]
[353239565,1739704237235,-500.0,8.761e-05,2]
[353239566,1739704237244,-500.0,8.761e-05,2]
[353239567,1739704237254,-186.99077554,8.761e-05,2]
[353239568,1739704237263,-3064.09,8.761e-05,2]
[353239569,1739704237272,-500.0,8.761e-05,2]
[353239570,1739704237281,-500.0,8.761e-05,2]
[353239571,1739704237291,-500.0,8.761e-05,2]
[353239572,1739704237300,-500.0,8.761e-05,2]
[353239573,1739704237310,-500.0,8.761e-05,2]
[353239574,1739704237319,-452.62939977,8.761e-05,2]
[353239575,1739704237329,-1618.41,8.761e-05,2]
[353239576,1739704237338,-515.73,8.761e-05,2]
[353239577,1739704237348,-188.93042321,8.761e-05,2]
[353239578,1739704237357,-500.0,8.761e-05,2]
[353239579,1739704237367,-1263.52,8.761e-05,2]
[353239580,1739704237376,-500.0,8.761e-05,2]
[353239581,1739704237386,-500.0,8.761e-05,2]
[353239582,1739704237395,-500.0,8.761e-05,2]
[353239583,1739704237405,-500.0,8.761e-05,2]
[353239584,1739704237414,-500.0,8.761e-05,2]
[353239585,1739704237423,-500.0,8.761e-05,2]
[353239586,1739704237433,-500.0,8.761e-05,2]
[353239587,1739704237443,-1790.04,8.761e-05,2]
[353239588,1739704237453,-1790.04,8.761e-05,2]
[353239589,1739704237462,-15643.94,8.761e-05,2]
[353239590,1739704237471,-1790.04,8.761e-05,2]
[353239591,1739704237481,-1790.04,8.761e-05,2]
[353239592,1739704237489,-500.0,8.761e-05,2]
[353239593,1739704237499,-1790.04,8.761e-05,2]
[353239594,1739704237508,-500.0,8.761e-05,2]
[353239596,1739704237518,-500.0,8.761e-05,2]
[353239597,1739704237528,-888.97,8.761e-05,2]
[353239598,1739704237537,-653.17,8.761e-05,2]
[353239599,1739704237547,-1896.73,8.761e-05,2]
[353239600,1739704237557,-500.0,8.761e-05,2]
[353239601,1739704237566,-500.0,8.761e-05,2]
[353239602,1739704237576,-500.0,8.761e-05,2]
[353239603,1739704237586,-500.0,8.761e-05,2]
[353239604,1739704237595,-500.0,8.761e-05,2]
[353239605,1739704237613,-500.0,8.761e-05,2]
[353239606,1739704237630,-500.0,8.761e-05,2]
[353239607,1739704237647,-500.0,8.761e-05,2]
[353239608,1739704237663,-500.0,8.761e-05,2]
[353239609,1739704237681,-1904.48,8.761e-05,2]
[353239610,1739704237700,-993.71,8.761e-05,2]
[353239611,1739704237716,-500.0,8.761e-05,2]
[353239612,1739704237732,-500.0,8.761e-05,2]
[353239613,1739704237749,-1009.9,8.761e-05,2]
[353239614,1739704237762,-287.81413658,8.761e-05,2]
[353239615,1739704237777,-1294.49,8.761e-05,2]
[353239616,1739704237795,-500.0,8.761e-05,2]
[353239617,1739704237813,-500.0,8.761e-05,2]
[353239618,1739704237831,-500.0,8.761e-05,2]
[353239619,1739704237843,-709.78,8.761e-05,2]
[353239620,1739704237858,-500.0,8.761e-05,2]
[353239621,1739704237876,-500.0,8.761e-05,2]
[353239622,1739704237889,-500.0,8.761e-05,2]
[353239623,1739704237910,-500.0,8.761e-05,2]
[353239624,1739704237922,-500.0,8.761e-05,2]
[353239625,1739704237936,-500.0,8.761e-05,2]
[353239626,1739704237950,-500.0,8.761e-05,2]
[353239627,1739704237964,-500.0,8.761e-05,2]
[353239628,1739704237979,-692.07,8.761e-05,2]
[353239629,1739704237995,-630.46,8.761e-05,2]
[353239630,1739704238008,-500.0,8.761e-05,2]
[353239631,1739704238022,-502.61370012,8.761e-05,2]
[353239632,1739704238036,-500.0,8.761e-05,2]
[353239633,1739704238049,-500.0,8.761e-05,2]
[353239634,1739704238064,-500.0,8.761e-05,2]
[353239635,1739704238079,-500.0,8.761e-05,2]
[353239636,1739704238092,-500.0,8.761e-05,2]
[353239637,1739704238106,-500.0,8.761e-05,2]
[353239638,1739704238119,-500.0,8.761e-05,2]
[353239639,1739704238132,-500.0,8.761e-05,2]
[353239640,1739704238146,-500.0,8.761e-05,2]
[353239641,1739704238159,-765.23,8.761e-05,2]
[353239643,1739704238173,-500.0,8.761e-05,2]
[353239645,1739704238186,-500.0,8.761e-05,2]
[353239646,1739704238200,-500.0,8.761e-05,2]
[353239647,1739704238215,-500.0,8.761e-05,2]
[353239648,1739704238229,-500.0,8.761e-05,2]
[353239649,1739704238243,-644.84140235,8.761e-05,2]
[353239650,1739704238258,-500.0,8.761e-05,2]
[353239651,1739704238272,-509.39700835,8.761e-05,2]
[353239652,1739704238286,-500.0,8.761e-05,2]
[353239653,1739704238301,-1262.1,8.761e-05,2]
[353239654,1739704238314,-493.83145578,8.761e-05,2]
[353239655,1739704238328,-720.73,8.761e-05,2]
[353239656,1739704238341,-530.75,8.761e-05,2]
[353239657,1739704238355,-181.26081919,8.761e-05,2]
[353239658,1739704238368,-504.4238061,8.761e-05,2]
[353239659,1739704238382,-500.0,8.761e-05,2]
[353239660,1739704238397,-723.9,8.761e-05,2]
[353239661,1739704238410,-504.75426987,8.761e-05,2]
[353239662,1739704238424,-758.11,8.761e-05,2]
[353239663,1739704238438,-500.0,8.761e-05,2]
[353239664,1739704238453,-500.0,8.761e-05,2]
[353239665,1739704238467,-512.66205982,8.761e-05,2]
[353239666,1739704238478,-500.0,8.761e-05,2]
[353239667,1739704238488,-500.0,8.761e-05,2]
[353239668,1739704238497,-500.0,8.761e-05,2]
[353239669,1739704238660,-500.0,8.761e-05,2]
[353239670,1739704238671,-500.0,8.761e-05,2]
[353239671,1739704238682,-500.0,8.761e-05,2]
[353239672,1739704238691,-500.0,8.761e-05,2]
[353239673,1739704238701,-500.0,8.761e-05,2]
[353239674,1739704238712,-500.0,8.761e-05,2]
[353239675,1739704238721,-1419.88,8.761e-05,2]
[353239676,1739704238730,-500.0,8.761e-05,2]
[353239677,1739704238740,-502.53382021,8.761e-05,2]
[353239678,1739704238750,-500.0,8.761e-05,2]
[353239679,1739704238760,-418.79507187,8.761e-05,2]
[353239680,1739704238770,-306.2736583,8.761e-05,2]
[353239681,1739704238781,-955.13,8.761e-05,2]
[353239682,1739704238791,-500.0,8.761e-05,2]
[353239683,1739704238801,-500.0,8.761e-05,2]
[353239684,1739704238810,-500.0,8.761e-05,2]
[353239685,1739704238821,-3487.54,8.761e-05,2]
[353239686,1739704238831,-500.0,8.761e-05,2]
[353239687,1739704238841,-628.21032011,8.761e-05,2]
[353239688,1739704238850,-789.7,8.761e-05,2]
[353239689,1739704238859,-500.0,8.761e-05,2]
[353239690,1739704238869,-500.0,8.761e-05,2]
[353239691,1739704238878,-500.0,8.761e-05,2]
[353239692,1739704238888,-15663.82,8.761e-05,2]
[353239693,1739704238897,-500.0,8.761e-05,2]
[353239694,1739704238907,-500.0,8.761e-05,2]
[353239695,1739704238916,-938.65,8.761e-05,2]
[353239696,1739704238927,-500.0,8.761e-05,2]
[353239697,1739704238938,-500.0,8.761e-05,2]
[353239698,1739704238948,-500.0,8.761e-05,2]
[353239699,1739704238958,-500.0,8.761e-05,2]
[353239700,1739704238968,-1141.29,8.761e-05,2]
[353239701,1739704238982,-500.0,8.761e-05,2]
[353239702,1739704238993,-500.0,8.761e-05,2]
[353239703,1739704239003,-500.0,8.761e-05,2]
[353239704,1739704239013,-754.33,8.761e-05,2]
[353239705,1739704239024,-500.0,8.761e-05,2]
[353239706,1739704239034,-500.0,8.761e-05,2]
[353239707,1739704239044,-500.0,8.761e-05,2]
[353239708,1739704239055,-500.0,8.761e-05,2]
[353239709,1739704239065,-500.0,8.761e-05,2]
[353239710,1739704239075,-875.53,8.761e-05,2]
[353239711,1739704239084,-500.0,8.761e-05,2]
[353239712,1739704239094,-500.0,8.761e-05,2]
[353239713,1739704239104,-643.9,8.761e-05,2]
[353239714,1739704239115,-500.0,8.761e-05,2]
[353239715,1739704239125,-500.0,8.761e-05,2]
[353239716,1739704239135,-500.0,8.761e-05,2]
[353239717,1739704239145,-985.23,8.761e-05,2]
[353239718,1739704239155,-37932.2,8.761e-05,2]
[353239719,1739704239165,-500.0,8.761e-05,2]
[353239720,1739704239175,-500.0,8.761e-05,2]
[353239721,1739704239185,-500.0,8.761e-05,2]
[353239722,1739704239195,-500.0,8.761e-05,2]
[353239723,1739704239205,-156.11898091,8.761e-05,2]
[353239724,1739704239216,-500.0,8.762e-05,2]
[353239725,1739704239226,-500.0,8.762e-05,2]
[353239726,1739704239237,-520.14506571,8.762e-05,2]
[353239727,1739704239247,-733.64,8.762e-05,2]
[353239728,1739704239257,-417.62662071,8.762e-05,2]
[353239729,1739704239267,-543.15,8.762e-05,2]
[353239730,1739704239276,-685.67,8.762e-05,2]
[353239731,1739704239287,-500.0,8.762e-05,2]
[353239732,1739704239297,-500.0,8.762e-05,2]
[353239733,1739704239307,-2076.7,8.762e-05,2]
[353239734,1739704239318,-500.0,8.762e-05,2]
[353239735,1739704239327,-500.0,8.762e-05,2]
[353239736,1739704239337,-500.0,8.762e-05,2]
[353239737,1739704239347,-2061.42,8.762e-05,2]
[353239738,1739704239357,-221.57033021,8.762e-05,2]
[353239739,1739704239367,-500.0,8.762e-05,2]
[353239740,1739704239377,-500.0,8.762e-05,2]
[353239741,1739704239387,-500.0,8.762e-05,2]
[353239744,1739704239397,-500.0,8.762e-05,2]
[353239746,1739704239407,-500.0,8.762e-05,2]
[353239747,1739704239417,-538.17,8.762e-05,2]
[353239749,1739704239428,-2056.54,8.762e-05,2]
[353239750,1739704239438,-500.0,8.762e-05,2]
[353239751,1739704239448,-639.77,8.762e-05,2]
[353239752,1739704239458,-308.47284582,8.762e-05,2]
[353239753,1739704239469,-501.71078274,8.762e-05,2]
[353239754,1739704239479,-516.03,8.762e-05,2]
[353239755,1739704239487,-500.0,8.762e-05,2]
[353239757,1739704239497,-500.0,8.762e-05,2]
[353239759,1739704239507,-500.0,8.762e-05,2]
[353239761,1739704239516,-500.0,8.762e-05,2]
[353239763,1739704239526,-500.0,8.762e-05,2]
[353239764,1739704239535,-1790.04,8.762e-05,2]
[353239766,1739704239545,-1790.04,8.762e-05,2]
[353239767,1739704239554,-1790.04,8.762e-05,2]
[353239768,1739704239564,-1790.04,8.762e-05,2]
[353239769,1739704239574,-1790.04,8.762e-05,2]
[353239770,1739704239583,-1790.04,8.762e-05,2]
[353239771,1739704239593,-1790.04,8.762e-05,2]
[353239772,1739704239603,-500.0,8.762e-05,2]
[353239773,1739704239612,-500.0,8.762e-05,2]
[353239774,1739704239622,-500.0,8.762e-05,2]
[353239775,1739704239632,-500.0,8.762e-05,2]
[353239776,1739704239642,-500.0,8.762e-05,2]
[353239777,1739704239651,-500.0,8.762e-05,2]
[353239778,1739704239661,-762.98,8.762e-05,2]
[353239779,1739704239672,-500.0,8.762e-05,2]
[353239780,1739704239682,-661.44,8.762e-05,2]
[353239781,1739704239692,-500.0,8.763e-05,2]
[353239782,1739704239702,-500.0,8.763e-05,2]
[353239783,1739704239711,-500.0,8.763e-05,2]
[353239784,1739704239720,-331.44418723,8.763e-05,2]
[353239785,1739704239730,-500.0,8.763e-05,2]
[353239786,1739704239740,-677.92,8.763e-05,2]
[353239787,1739704239750,-500.0,8.763e-05,2]
[353239788,1739704239760,-500.0,8.763e-05,2]
[353239789,1739704239770,-500.0,8.763e-05,2]
[353239790,1739704239779,-500.0,8.763e-05,2]
[353239791,1739704239789,-512.28135351,8.763e-05,2]
[353239792,1739704239798,-503.43633386,8.763e-05,2]
[353239793,1739704239808,-200.79496731,8.763e-05,2]
[353239794,1739704239818,-500.0,8.763e-05,2]
[353239795,1739704239829,-500.0,8.763e-05,2]
[353239796,1739704239839,-500.0,8.763e-05,2]
[353239797,1739704239849,-500.0,8.763e-05,2]
[353239798,1739704239859,-500.0,8.763e-05,2]
[353239799,1739704239868,-500.0,8.763e-05,2]
[353239800,1739704239878,-500.0,8.763e-05,2]
[353239801,1739704239887,-500.0,8.763e-05,2]
[353239802,1739704239896,-500.0,8.763e-05,2]
[353239803,1739704239906,-1189.36,8.763e-05,2]
[353239804,1739704239917,-500.0,8.763e-05,2]
[353239805,1739704239926,-686.42,8.763e-05,2]
[353239806,1739704239936,-625.51,8.763e-05,2]
[353239807,1739704239945,-500.0,8.763e-05,2]
[353239808,1739704239955,-500.0,8.763e-05,2]
[353239809,1739704239965,-500.0,8.763e-05,2]
[353239810,1739704239974,-500.0,8.763e-05,2]
[353239811,1739704239990,-385.18211628,8.763e-05,2]
[353239812,1739704239999,-504.33723415,8.763e-05,2]
[353239813,1739704240008,-502.6199509,8.763e-05,2]
[353239814,1739704240018,-500.0,8.763e-05,2]
[353239815,1739704240028,-500.0,8.763e-05,2]
[353239816,1739704240038,-500.0,8.763e-05,2]
[353239817,1739704240047,-500.0,8.763e-05,2]
[353239818,1739704240057,-500.0,8.763e-05,2]
[353239820,1739704240067,-500.0,8.763e-05,2]
[353239821,1739704240077,-500.0,8.763e-05,2]
[353239822,1739704240087,-500.0,8.763e-05,2]
[353239824,1739704240096,-500.0,8.763e-05,2]
[353239826,1739704240105,-500.0,8.763e-05,2]
[353239828,1739704240115,-624.75736723,8.763e-05,2]
[353239830,1739704240125,-700.4,8.763e-05,2]
[353239832,1739704240135,-500.0,8.763e-05,2]
[353239835,1739704240146,-353.57322542,8.763e-05,2]
[353239837,1739704240156,-660.94,8.763e-05,2]
[353239838,1739704240166,-500.0,8.763e-05,2]
[353239839,1739704240178,-345.92067424,8.763e-05,2]
[353239840,1739704240188,-500.0,8.763e-05,2]
[353239841,1739704240197,-951.56,8.763e-05,2]
[353239842,1739704240207,-438.10624567,8.763e-05,2]
[353239843,1739704240218,-259.32308056,8.763e-05,2]
[353239844,1739704240227,-447.57610266,8.763e-05,2]
[353239845,1739704240237,-500.0,8.763e-05,2]
[353239846,1739704240246,-293.60199292,8.763e-05,2]
[353239847,1739704240255,-500.0,8.763e-05,2]
[353239848,1739704240265,-500.0,8.763e-05,2]
[353239849,1739704240274,-500.0,8.763e-05,2]
[353239850,1739704240283,-500.0,8.763e-05,2]
[353239851,1739704240292,-562.25,8.763e-05,2]
[353239852,1739704240302,-500.0,8.763e-05,2]
[353239853,1739704240311,-500.0,8.763e-05,2]
[353239854,1739704240320,-565.74,8.763e-05,2]
[353239855,1739704240329,-500.0,8.763e-05,2]
[353239856,1739704240339,-503.27650753,8.763e-05,2]
[353239857,1739704240348,-500.46312117,8.763e-05,2]
[353239858,1739704240357,-500.0,8.763e-05,2]
[353239859,1739704240367,-500.0,8.763e-05,2]
[353239860,1739704240377,-523.50836409,8.763e-05,2]
[353239861,1739704240387,-502.53939383,8.763e-05,2]
[353239862,1739704240396,-345.91555094,8.763e-05,2]
[353239863,1739704240405,-998.55,8.763e-05,2]
[353239864,1739704240414,-500.0,8.763e-05,2]
[353239865,1739704240423,-500.0,8.763e-05,2]
[353239866,1739704240434,-567.53274074,8.763e-05,2]
[353239867,1739704240444,-500.0,8.763e-05,2]
[353239868,1739704240454,-647.57134157,8.763e-05,2]
[353239869,1739704240464,-500.0,8.763e-05,2]
[353239870,1739704240473,-500.63205692,8.763e-05,2]
[353239871,1739704240483,-500.69419023,8.763e-05,2]
[353239872,1739704240492,-500.0,8.763e-05,2]
[353239873,1739704240501,-500.0,8.763e-05,2]
[353239874,1739704240511,-500.0,8.763e-05,2]
[353239875,1739704240520,-500.0,8.763e-05,2]
[353239876,1739704240529,-500.0,8.763e-05,2]
[353239877,1739704240539,-500.0,8.763e-05,2]
[353239878,1739704240548,-500.0,8.763e-05,2]
[353239879,1739704240557,-500.0,8.763e-05,2]
[353239880,1739704240652,-500.0,8.763e-05,2]
[353239881,1739704240662,-500.0,8.763e-05,2]
[353239882,1739704240673,-500.0,8.763e-05,2]
[353239883,1739704240683,-500.0,8.763e-05,2]
[353239884,1739704240692,-1790.04,8.763e-05,2]
[353239885,1739704240701,-1790.04,8.763e-05,2]
[353239886,1739704240711,-500.0,8.763e-05,2]
[353239887,1739704240721,-500.0,8.763e-05,2]
[353239888,1739704240731,-181.26081919,8.763e-05,2]
[353239889,1739704240741,-567.53040421,8.764e-05,2]
[353239890,1739704240751,-500.0,8.764e-05,2]
[353239891,1739704240762,-223.55051509,8.764e-05,2]
[353239892,1739704240773,-453.13722921,8.764e-05,2]
[353239893,1739704240782,-622.2233789,8.764e-05,2]
[353239894,1739704240791,-500.0,8.764e-05,2]
[353239895,1739704240801,-500.0,8.764e-05,2]
[353239896,1739704240810,-505.16621407,8.764e-05,2]